[Event "Titled Tuesday Blitz December 13 Early 2022"]
[White "Lenderman, Aleksandr"]
[Black "Moroni, Luca Jr"]
[WhiteFideId "2021285"]
[BlackFideId "865834"]
[WhiteElo "2607"]
[BlackElo "2573"]
[Result "1-0"]
[Round "04"]
[TimeControl "180+1"]
[Date "2022.12.13"]
[WhiteClock "0:01:55"]
[BlackClock "0:00:04"]

1. d4 {[%clk 0:03:00]}  d6 {[%clk 0:03:00]} 2. e4 {[%clk 0:02:59]}  e5 {[%clk 0:03:00]} 3. Nf3 {[%clk 0:02:58]}  exd4 {[%clk 0:03:00]} 4. Qxd4 {[%clk 0:02:57]}  Nf6 {[%clk 0:03:01]} 5. Bg5 {[%clk 0:02:47]}  Be7 {[%clk 0:03:01]} 6. Nc3 {[%clk 0:02:43]}  O-O {[%clk 0:03:00]} 7. Bc4 {[%clk 0:02:43]}  Nc6 {[%clk 0:02:57]} 8. Qd2 {[%clk 0:02:43]}  Ne5 {[%clk 0:02:53]} 9. Nxe5 {[%clk 0:02:43]}  dxe5 {[%clk 0:02:54]} 10. O-O-O {[%clk 0:02:42]}  Qxd2+ {[%clk 0:02:48]} 11. Rxd2 {[%clk 0:02:43]}  c6 {[%clk 0:02:48]} 12. a4 {[%clk 0:02:38]}  a5 {[%clk 0:02:48]} 13. Rhd1 {[%clk 0:02:37]}  h6 {[%clk 0:02:46]} 14. Bh4 {[%clk 0:02:33]}  Re8 {[%clk 0:02:31]} 15. f3 {[%clk 0:02:29]}  Bc5 {[%clk 0:02:23]} 16. Bf2 {[%clk 0:02:27]}  Bxf2 {[%clk 0:02:19]} 17. Rxf2 {[%clk 0:02:28]}  Be6 {[%clk 0:02:14]} 18. Bxe6 {[%clk 0:02:28]}  Rxe6 {[%clk 0:02:15]} 19. Rfd2 {[%clk 0:02:28]}  Kf8 {[%clk 0:02:12]} 20. b3 {[%clk 0:02:24]}  Ree8 {[%clk 0:02:11]} 21. Nb1 {[%clk 0:02:22]}  b5 {[%clk 0:01:59]} 22. Rd6 {[%clk 0:02:19]}  Rec8 {[%clk 0:01:57]} 23. Na3 {[%clk 0:02:16]}  Rab8 {[%clk 0:01:53]} 24. axb5 {[%clk 0:02:10]}  cxb5 {[%clk 0:01:53]} 25. Ra6 {[%clk 0:02:10]}  a4 {[%clk 0:01:21]} 26. bxa4 {[%clk 0:02:10]}  b4 {[%clk 0:01:08]} 27. Nb5 {[%clk 0:02:10]}  Rc5 {[%clk 0:00:32]} 28. Kb2 {[%clk 0:02:06]}  Rbc8 {[%clk 0:00:23]} 29. Rd2 {[%clk 0:02:06]}  Ne8 {[%clk 0:00:23]} 30. Kb3 {[%clk 0:02:06]}  Rc4 {[%clk 0:00:18]} 31. Rb6 {[%clk 0:02:03]}  f5 {[%clk 0:00:10]} 32. exf5 {[%clk 0:02:02]}  e4 {[%clk 0:00:10]} 33. fxe4 {[%clk 0:02:01]}  Rxe4 {[%clk 0:00:11]} 34. a5 {[%clk 0:02:01]}  Nf6 {[%clk 0:00:11]} 35. a6 {[%clk 0:01:58]}  Re1 {[%clk 0:00:11]} 36. Kb2 {[%clk 0:01:58]}  Ree8 {[%clk 0:00:05]} 37. a7 {[%clk 0:01:57]}  Ne4 {[%clk 0:00:06]} 38. Re2 {[%clk 0:01:55]}  Nc5 {[%clk 0:00:03]} 39. Rxe8+ {[%clk 0:01:55]}  Kxe8 {[%clk 0:00:03]} 40. Nd6+ {[%clk 0:01:54]}  Kd7 {[%clk 0:00:03]} 41. Nxc8 {[%clk 0:01:55]}  Na4+ {[%clk 0:00:04]} 42. Kb3 {[%clk 0:01:55]}  Nxb6 {[%clk 0:00:04]} 43. Nxb6+ {[%clk 0:01:55]} 1-0


[Site "https://www.chess.com"]

[Event "Titled Tuesday Blitz December 13 Early 2022"]
[White "Madaminov, Mukhiddin"]
[Black "Aldokhin, Ivan"]
[WhiteFideId "14210703"]
[BlackFideId "24115720"]
[WhiteElo "2814"]
[BlackElo "2590"]
[Result "1-0"]
[Round "04"]
[TimeControl "180+1"]
[Date "2022.12.14"]
[WhiteClock "0:02:03"]
[BlackClock "0:00:04"]

1. d4 {[%clk 0:03:00]}  Nf6 {[%clk 0:02:58]} 2. Nc3 {[%clk 0:03:01]}  g6 {[%clk 0:02:58]} 3. e4 {[%clk 0:03:00]}  d6 {[%clk 0:02:59]} 4. f4 {[%clk 0:03:00]}  Bg7 {[%clk 0:02:59]} 5. Bd3 {[%clk 0:03:01]}  c5 {[%clk 0:02:55]} 6. dxc5 {[%clk 0:02:59]}  dxc5 {[%clk 0:02:44]} 7. e5 {[%clk 0:02:58]}  Nfd7 {[%clk 0:02:35]} 8. Nf3 {[%clk 0:02:56]}  Nc6 {[%clk 0:02:32]} 9. O-O {[%clk 0:02:56]}  O-O {[%clk 0:02:27]} 10. Be3 {[%clk 0:02:57]}  b6 {[%clk 0:02:14]} 11. Qe2 {[%clk 0:02:50]}  Bb7 {[%clk 0:01:32]} 12. Rad1 {[%clk 0:02:50]}  Qc8 {[%clk 0:01:18]} 13. Be4 {[%clk 0:02:47]}  Rd8 {[%clk 0:01:01]} 14. h4 {[%clk 0:02:31]}  Nf8 {[%clk 0:01:00]} 15. h5 {[%clk 0:02:31]}  Ne6 {[%clk 0:00:49]} 16. hxg6 {[%clk 0:02:29]}  hxg6 {[%clk 0:00:48]} 17. Qf2 {[%clk 0:02:30]}  Nb4 {[%clk 0:00:31]} 18. Rxd8+ {[%clk 0:02:26]}  Nxd8 {[%clk 0:00:30]} 19. Rd1 {[%clk 0:02:24]}  Qg4 {[%clk 0:00:22]} 20. Rxd8+ {[%clk 0:02:20]}  Rxd8 {[%clk 0:00:21]} 21. Bxb7 {[%clk 0:02:21]}  Bh6 {[%clk 0:00:11]} 22. a3 {[%clk 0:02:18]}  Bxf4 {[%clk 0:00:05]} 23. axb4 {[%clk 0:02:18]}  Bxe3 {[%clk 0:00:04]} 24. Qxe3 {[%clk 0:02:17]}  Qxb4 {[%clk 0:00:05]} 25. Nd5 {[%clk 0:02:17]}  Qxb2 {[%clk 0:00:04]} 26. Nxe7+ {[%clk 0:02:17]}  Kf8 {[%clk 0:00:04]} 27. Nd5 {[%clk 0:02:08]}  Kg7 {[%clk 0:00:03]} 28. Qg5 {[%clk 0:02:05]}  Qa1+ {[%clk 0:00:04]} 29. Kf2 {[%clk 0:02:03]}  Re8 {[%clk 0:00:02]} 30. Qf6+ {[%clk 0:02:03]}  Kg8 {[%clk 0:00:03]} 31. Ne7+ {[%clk 0:02:02]}  Kf8 {[%clk 0:00:03]} 32. Nxg6+ {[%clk 0:02:02]}  Kg8 {[%clk 0:00:04]} 33. Ne7+ {[%clk 0:02:02]}  Kf8 {[%clk 0:00:04]} 34. Nf5 {[%clk 0:02:03]} 1-0


[Site "https://www.chess.com"]

[Event "Titled Tuesday Blitz December 13 Early 2022"]
[White "Manukian, Artak"]
[Black "Sadubayev, Airat"]
[WhiteFideId "13301373"]
[BlackFideId "13713264"]
[WhiteElo "2130"]
[BlackElo "2160"]
[Result "1-0"]
[Round "04"]
[TimeControl "180+1"]
[Date "2022.12.14"]
[WhiteClock "0:00:31"]
[BlackClock "0:00:18"]

1. e4 {[%clk 0:03:00]}  c6 {[%clk 0:02:59]} 2. d4 {[%clk 0:03:00]}  d5 {[%clk 0:02:59]} 3. e5 {[%clk 0:03:00]}  Bf5 {[%clk 0:02:59]} 4. c4 {[%clk 0:02:59]}  e6 {[%clk 0:02:58]} 5. Nc3 {[%clk 0:02:59]}  Nd7 {[%clk 0:02:53]} 6. Nf3 {[%clk 0:02:59]}  Bg6 {[%clk 0:02:51]} 7. Bg5 {[%clk 0:02:52]}  Qb6 {[%clk 0:02:50]} 8. Qd2 {[%clk 0:02:48]}  Ne7 {[%clk 0:02:33]} 9. c5 {[%clk 0:02:43]}  Qc7 {[%clk 0:02:23]} 10. b4 {[%clk 0:02:37]}  Bh5 {[%clk 0:02:13]} 11. Be2 {[%clk 0:02:31]}  Bxf3 {[%clk 0:02:05]} 12. Bxf3 {[%clk 0:02:30]}  f6 {[%clk 0:02:03]} 13. exf6 {[%clk 0:02:29]}  gxf6 {[%clk 0:02:04]} 14. Bh5+ {[%clk 0:02:22]}  Ng6 {[%clk 0:02:02]} 15. Be3 {[%clk 0:02:18]}  O-O-O {[%clk 0:01:45]} 16. a4 {[%clk 0:02:11]}  Rg8 {[%clk 0:01:41]} 17. O-O {[%clk 0:02:03]}  f5 {[%clk 0:01:37]} 18. Bxg6 {[%clk 0:01:54]}  hxg6 {[%clk 0:01:36]} 19. Bf4 {[%clk 0:01:54]}  e5 {[%clk 0:01:31]} 20. dxe5 {[%clk 0:01:55]}  Nxe5 {[%clk 0:01:23]} 21. Ne2 {[%clk 0:01:39]}  g5 {[%clk 0:01:18]} 22. Bxg5 {[%clk 0:01:21]}  Rd7 {[%clk 0:00:40]} 23. Nd4 {[%clk 0:01:12]}  Bh6 {[%clk 0:00:37]} 24. Bxh6 {[%clk 0:01:06]}  Qd8 {[%clk 0:00:29]} 25. Bf4 {[%clk 0:00:57]}  Rdg7 {[%clk 0:00:25]} 26. g3 {[%clk 0:00:53]}  Ng4 {[%clk 0:00:23]} 27. Ne6 {[%clk 0:00:50]}  Qf6 {[%clk 0:00:20]} 28. Nxg7 {[%clk 0:00:49]}  Qxg7 {[%clk 0:00:20]} 29. f3 {[%clk 0:00:47]}  Nf6 {[%clk 0:00:20]} 30. Be5 {[%clk 0:00:45]}  Qg6 {[%clk 0:00:20]} 31. Bxf6 {[%clk 0:00:45]}  Qxf6 {[%clk 0:00:21]} 32. Rad1 {[%clk 0:00:43]}  f4 {[%clk 0:00:21]} 33. g4 {[%clk 0:00:43]}  Rh8 {[%clk 0:00:21]} 34. Qd4 {[%clk 0:00:36]}  Qh6 {[%clk 0:00:19]} 35. Rf2 {[%clk 0:00:34]}  Qh3 {[%clk 0:00:18]} 36. Qxf4 {[%clk 0:00:31]} 1-0


[Site "https://www.chess.com"]

[Event "Titled Tuesday Blitz December 13 Early 2022"]
[White "Martin Duque, Jesus"]
[Black "Bazarov, Konstantin"]
[WhiteFideId "2208954"]
[BlackFideId "4137000"]
[WhiteElo "2297"]
[BlackElo "2228"]
[Result "0-1"]
[Round "04"]
[TimeControl "180+1"]
[Date "2022.12.14"]
[WhiteClock "0:00:10"]
[BlackClock "0:00:12"]

1. Nf3 {[%clk 0:02:58]}  Nf6 {[%clk 0:02:59]} 2. b3 {[%clk 0:02:58]}  d6 {[%clk 0:02:59]} 3. Bb2 {[%clk 0:02:59]}  c6 {[%clk 0:02:59]} 4. d4 {[%clk 0:02:59]}  Nbd7 {[%clk 0:03:00]} 5. g3 {[%clk 0:02:59]}  Qc7 {[%clk 0:02:59]} 6. Bg2 {[%clk 0:02:57]}  e5 {[%clk 0:02:59]} 7. dxe5 {[%clk 0:02:55]}  dxe5 {[%clk 0:02:59]} 8. e4 {[%clk 0:02:54]}  Bb4+ {[%clk 0:02:52]} 9. c3 {[%clk 0:02:54]}  Bc5 {[%clk 0:02:52]} 10. O-O {[%clk 0:02:55]}  O-O {[%clk 0:02:48]} 11. Nfd2 {[%clk 0:02:54]}  a5 {[%clk 0:02:46]} 12. a3 {[%clk 0:02:54]}  b5 {[%clk 0:02:40]} 13. b4 {[%clk 0:02:54]}  Bb6 {[%clk 0:02:39]} 14. c4 {[%clk 0:02:48]}  Ba6 {[%clk 0:02:23]} 15. c5 {[%clk 0:02:47]}  Ba7 {[%clk 0:02:23]} 16. Nc3 {[%clk 0:02:44]}  Rad8 {[%clk 0:02:21]} 17. Qe2 {[%clk 0:02:34]}  Bc8 {[%clk 0:02:16]} 18. Nb3 {[%clk 0:02:33]}  a4 {[%clk 0:02:15]} 19. Nc1 {[%clk 0:02:33]}  Rfe8 {[%clk 0:02:12]} 20. Nd3 {[%clk 0:02:32]}  Nf8 {[%clk 0:02:12]} 21. Rad1 {[%clk 0:02:24]}  Ne6 {[%clk 0:02:11]} 22. Nxe5 {[%clk 0:02:22]}  Qxe5 {[%clk 0:01:59]} 23. Nd5 {[%clk 0:02:23]}  Qg5 {[%clk 0:01:56]} 24. f4 {[%clk 0:02:16]}  Qh6 {[%clk 0:01:55]} 25. Nxf6+ {[%clk 0:02:01]}  gxf6 {[%clk 0:01:53]} 26. Rxd8 {[%clk 0:02:02]}  Nxd8 {[%clk 0:01:50]} 27. Rd1 {[%clk 0:02:02]}  Qg6 {[%clk 0:01:39]} 28. Rd6 {[%clk 0:02:01]}  Bg4 {[%clk 0:01:38]} 29. Qd2 {[%clk 0:01:53]}  Nb7 {[%clk 0:01:30]} 30. Rxf6 {[%clk 0:01:50]}  Qh5 {[%clk 0:01:27]} 31. Rxc6 {[%clk 0:01:43]}  Rd8 {[%clk 0:01:24]} 32. Qc3 {[%clk 0:01:39]}  Rd1+ {[%clk 0:01:12]} 33. Kf2 {[%clk 0:01:39]}  f6 {[%clk 0:01:04]} 34. Rxf6 {[%clk 0:01:24]}  Nxc5 {[%clk 0:00:48]} 35. Rf8+ {[%clk 0:00:49]}  Kxf8 {[%clk 0:00:45]} 36. Qg7+ {[%clk 0:00:49]}  Ke8 {[%clk 0:00:44]} 37. Qg8+ {[%clk 0:00:47]}  Kd7 {[%clk 0:00:41]} 38. Qg7+ {[%clk 0:00:46]}  Kc8 {[%clk 0:00:38]} 39. Qxa7 {[%clk 0:00:44]}  Rd2+ {[%clk 0:00:36]} 40. Kg1 {[%clk 0:00:41]}  Rd1+ {[%clk 0:00:27]} 41. Kf2 {[%clk 0:00:40]}  Nd3+ {[%clk 0:00:23]} 42. Ke3 {[%clk 0:00:41]}  Nxb2 {[%clk 0:00:23]} 43. Qa8+ {[%clk 0:00:39]}  Kd7 {[%clk 0:00:22]} 44. e5 {[%clk 0:00:33]}  Re1+ {[%clk 0:00:20]} 45. Kf2 {[%clk 0:00:32]}  Re2+ {[%clk 0:00:20]} 46. Kf1 {[%clk 0:00:29]}  Rxg2 {[%clk 0:00:18]} 47. Qb7+ {[%clk 0:00:29]}  Kd8 {[%clk 0:00:17]} 48. Qb8+ {[%clk 0:00:29]}  Ke7 {[%clk 0:00:17]} 49. Qd6+ {[%clk 0:00:29]}  Ke8 {[%clk 0:00:16]} 50. Qb8+ {[%clk 0:00:27]}  Kf7 {[%clk 0:00:16]} 51. Qc7+ {[%clk 0:00:27]}  Kg8 {[%clk 0:00:15]} 52. Qd8+ {[%clk 0:00:26]}  Kg7 {[%clk 0:00:15]} 53. Qf6+ {[%clk 0:00:27]}  Kg8 {[%clk 0:00:14]} 54. Qd8+ {[%clk 0:00:24]}  Kf7 {[%clk 0:00:13]} 55. Qf6+ {[%clk 0:00:22]}  Ke8 {[%clk 0:00:14]} 56. Kxg2 {[%clk 0:00:18]}  Bd7 {[%clk 0:00:12]} 57. e6 {[%clk 0:00:18]}  Bc6+ {[%clk 0:00:12]} 58. Kf1 {[%clk 0:00:11]}  Qd1+ {[%clk 0:00:11]} 59. Kf2 {[%clk 0:00:10]}  Qd2+ {[%clk 0:00:12]} 60. Kg1 {[%clk 0:00:10]}  Qe1# {[%clk 0:00:12]} 0-1


[Site "https://www.chess.com"]

[Event "Titled Tuesday Blitz December 13 Early 2022"]
[White "Matinian, Nikita"]
[Black "Aggelis, Nikolaos"]
[WhiteFideId "24129100"]
[BlackFideId "4213220"]
[WhiteElo "2422"]
[BlackElo "2189"]
[Result "1-0"]
[Round "04"]
[TimeControl "180+1"]
[Date "2022.12.14"]
[WhiteClock "0:01:35"]
[BlackClock "0:02:00"]

1. e4 {[%clk 0:02:59]}  e5 {[%clk 0:02:54]} 2. Nf3 {[%clk 0:02:55]}  Nc6 {[%clk 0:02:54]} 3. Bb5 {[%clk 0:02:55]}  a6 {[%clk 0:02:54]} 4. Ba4 {[%clk 0:02:55]}  Nf6 {[%clk 0:02:54]} 5. d3 {[%clk 0:02:54]}  d6 {[%clk 0:02:47]} 6. c4 {[%clk 0:02:53]}  g6 {[%clk 0:02:47]} 7. Nc3 {[%clk 0:02:52]}  Bg7 {[%clk 0:02:47]} 8. Nd5 {[%clk 0:02:52]}  h6 {[%clk 0:02:45]} 9. h3 {[%clk 0:02:51]}  Bd7 {[%clk 0:02:44]} 10. Be3 {[%clk 0:02:50]}  Ne7 {[%clk 0:02:41]} 11. Bxd7+ {[%clk 0:02:49]}  Nxd7 {[%clk 0:02:41]} 12. Qd2 {[%clk 0:02:48]}  c6 {[%clk 0:02:40]} 13. Nxe7 {[%clk 0:02:46]}  Qxe7 {[%clk 0:02:40]} 14. O-O {[%clk 0:02:43]}  Nf8 {[%clk 0:02:33]} 15. d4 {[%clk 0:02:42]}  exd4 {[%clk 0:02:33]} 16. Bxd4 {[%clk 0:02:42]}  Ne6 {[%clk 0:02:27]} 17. Bxg7 {[%clk 0:02:40]}  Nxg7 {[%clk 0:02:28]} 18. Rad1 {[%clk 0:02:40]}  Rd8 {[%clk 0:02:28]} 19. Rfe1 {[%clk 0:02:39]}  Ne6 {[%clk 0:02:19]} 20. Qe3 {[%clk 0:02:09]}  Qf6 {[%clk 0:02:15]} 21. e5 {[%clk 0:02:07]}  dxe5 {[%clk 0:02:12]} 22. Rxd8+ {[%clk 0:02:06]}  Qxd8 {[%clk 0:02:13]} 23. Nxe5 {[%clk 0:02:05]}  Qf6 {[%clk 0:02:05]} 24. Qb6 {[%clk 0:01:48]}  O-O {[%clk 0:02:04]} 25. Nd7 {[%clk 0:01:44]}  Qd8 {[%clk 0:01:59]} 26. Qxb7 {[%clk 0:01:37]}  Re8 {[%clk 0:01:59]} 27. Qxc6 {[%clk 0:01:36]}  Nd4 {[%clk 0:01:59]} 28. Rxe8+ {[%clk 0:01:35]}  Qxe8 {[%clk 0:02:00]} 29. Nf6+ {[%clk 0:01:35]} 1-0


[Site "https://www.chess.com"]

[Event "Titled Tuesday Blitz December 13 Early 2022"]
[White "Mazurkiewicz, Michal"]
[Black "Khripachenko, Alexander"]
[WhiteFideId "1124943"]
[BlackFideId "54184975"]
[WhiteElo "2081"]
[BlackElo "2301"]
[Result "1/2-1/2"]
[Round "04"]
[TimeControl "180+1"]
[Date "2022.12.14"]
[WhiteClock "0:00:05"]
[BlackClock "0:01:29"]

1. e4 {[%clk 0:03:00]}  e5 {[%clk 0:02:59]} 2. Nf3 {[%clk 0:03:00]}  Nf6 {[%clk 0:02:59]} 3. d3 {[%clk 0:03:00]}  d5 {[%clk 0:02:58]} 4. exd5 {[%clk 0:02:59]}  Qxd5 {[%clk 0:02:58]} 5. g3 {[%clk 0:02:59]}  e4 {[%clk 0:02:56]} 6. dxe4 {[%clk 0:02:57]}  Qxd1+ {[%clk 0:02:55]} 7. Kxd1 {[%clk 0:02:57]}  Nxe4 {[%clk 0:02:56]} 8. Be3 {[%clk 0:02:54]}  Nc6 {[%clk 0:02:53]} 9. c3 {[%clk 0:02:54]}  Bf5 {[%clk 0:02:54]} 10. Nh4 {[%clk 0:02:35]}  O-O-O+ {[%clk 0:02:51]} 11. Kc2 {[%clk 0:02:35]}  Nxg3+ {[%clk 0:02:36]} 12. Nxf5 {[%clk 0:02:34]}  Nxf5 {[%clk 0:02:35]} 13. Bh3 {[%clk 0:02:30]}  Ne7 {[%clk 0:02:35]} 14. Na3 {[%clk 0:02:01]}  Kb8 {[%clk 0:02:33]} 15. Rad1 {[%clk 0:01:52]}  Nxe3+ {[%clk 0:02:32]} 16. fxe3 {[%clk 0:01:53]}  Rxd1 {[%clk 0:02:29]} 17. Rxd1 {[%clk 0:01:53]}  Nc6 {[%clk 0:02:29]} 18. Rd7 {[%clk 0:01:36]}  Bxa3 {[%clk 0:02:26]} 19. bxa3 {[%clk 0:01:37]}  Rf8 {[%clk 0:02:25]} 20. Bg2 {[%clk 0:01:27]}  Ne5 {[%clk 0:02:23]} 21. Re7 {[%clk 0:01:27]}  Ng6 {[%clk 0:02:23]} 22. Rd7 {[%clk 0:01:27]}  Ne5 {[%clk 0:02:06]} 23. Re7 {[%clk 0:01:27]}  Nc4 {[%clk 0:02:06]} 24. Kb3 {[%clk 0:01:15]}  Nd6 {[%clk 0:02:06]} 25. Bd5 {[%clk 0:00:44]}  Kc8 {[%clk 0:02:02]} 26. c4 {[%clk 0:00:31]}  Kd8 {[%clk 0:01:59]} 27. Re5 {[%clk 0:00:31]}  c6 {[%clk 0:01:59]} 28. c5 {[%clk 0:00:17]}  Nb5 {[%clk 0:01:57]} 29. Bc4 {[%clk 0:00:16]}  Nc7 {[%clk 0:01:58]} 30. a4 {[%clk 0:00:11]}  f6 {[%clk 0:01:58]} 31. Rh5 {[%clk 0:00:10]}  h6 {[%clk 0:01:58]} 32. Rh3 {[%clk 0:00:11]}  Re8 {[%clk 0:01:58]} 33. Rg3 {[%clk 0:00:11]}  g5 {[%clk 0:01:58]} 34. Rh3 {[%clk 0:00:11]}  b6 {[%clk 0:01:52]} 35. Kb4 {[%clk 0:00:09]}  Re4 {[%clk 0:01:49]} 36. cxb6 {[%clk 0:00:06]}  axb6 {[%clk 0:01:49]} 37. Kc3 {[%clk 0:00:07]}  b5 {[%clk 0:01:46]} 38. axb5 {[%clk 0:00:07]}  cxb5 {[%clk 0:01:46]} 39. Bd3 {[%clk 0:00:06]}  Ra4 {[%clk 0:01:47]} 40. Rxh6 {[%clk 0:00:05]}  Ke7 {[%clk 0:01:47]} 41. Rh7+ {[%clk 0:00:06]}  Kd6 {[%clk 0:01:48]} 42. Rf7 {[%clk 0:00:06]}  Nd5+ {[%clk 0:01:45]} 43. Kb3 {[%clk 0:00:07]}  Rb4+ {[%clk 0:01:45]} 44. Kc2 {[%clk 0:00:07]}  Rh4 {[%clk 0:01:43]} 45. e4 {[%clk 0:00:06]}  Rxh2+ {[%clk 0:01:42]} 46. Kb3 {[%clk 0:00:07]}  Nf4 {[%clk 0:01:42]} 47. Rxf6+ {[%clk 0:00:07]}  Ke7 {[%clk 0:01:42]} 48. Rf5 {[%clk 0:00:04]}  Nxd3 {[%clk 0:01:42]} 49. Rxg5 {[%clk 0:00:04]}  Rb2+ {[%clk 0:01:39]} 50. Kc3 {[%clk 0:00:04]}  Rxa2 {[%clk 0:01:31]} 51. Kxd3 {[%clk 0:00:04]}  Rb2 {[%clk 0:01:29]} 52. Kd4 {[%clk 0:00:04]}  b4 {[%clk 0:01:28]} 53. Rb5 {[%clk 0:00:04]}  b3 {[%clk 0:01:29]} 54. Kc4 {[%clk 0:00:04]}  Re2 {[%clk 0:01:28]} 55. Rxb3 {[%clk 0:00:04]}  Rxe4+ {[%clk 0:01:28]} 56. Kc5 {[%clk 0:00:04]}  Re1 {[%clk 0:01:29]} 57. Kc4 {[%clk 0:00:05]} 1/2-1/2


[Site "https://www.chess.com"]

[Event "Titled Tuesday Blitz December 13 Early 2022"]
[White "Mendez Fortes, Eduardo Jesus"]
[Black "Salinas Herrera, Pablo"]
[WhiteFideId "3502376"]
[BlackFideId "3407128"]
[WhiteElo "2589"]
[BlackElo "2806"]
[Result "0-1"]
[Round "04"]
[TimeControl "180+1"]
[Date "2022.12.14"]
[WhiteClock "0:00:10"]
[BlackClock "0:00:13"]

1. e4 {[%clk 0:02:43]}  c5 {[%clk 0:02:59]} 2. Nf3 {[%clk 0:02:43]}  e6 {[%clk 0:03:00]} 3. d4 {[%clk 0:02:43]}  cxd4 {[%clk 0:03:01]} 4. Nxd4 {[%clk 0:02:44]}  a6 {[%clk 0:03:01]} 5. c4 {[%clk 0:02:44]}  Qc7 {[%clk 0:03:01]} 6. Nc3 {[%clk 0:02:43]}  b6 {[%clk 0:02:57]} 7. Be2 {[%clk 0:02:43]}  Bb7 {[%clk 0:02:57]} 8. f3 {[%clk 0:02:43]}  Nc6 {[%clk 0:02:55]} 9. Be3 {[%clk 0:02:42]}  Nf6 {[%clk 0:02:55]} 10. O-O {[%clk 0:02:41]}  Bd6 {[%clk 0:02:54]} 11. Kh1 {[%clk 0:02:41]}  Nxd4 {[%clk 0:02:47]} 12. Bxd4 {[%clk 0:02:42]}  Bxh2 {[%clk 0:02:43]} 13. Qb3 {[%clk 0:02:15]}  Bg3 {[%clk 0:02:39]} 14. Be3 {[%clk 0:02:07]}  O-O {[%clk 0:02:00]} 15. Qxb6 {[%clk 0:02:00]}  Qxb6 {[%clk 0:01:52]} 16. Bxb6 {[%clk 0:02:01]}  d5 {[%clk 0:01:53]} 17. cxd5 {[%clk 0:01:50]}  exd5 {[%clk 0:01:54]} 18. exd5 {[%clk 0:01:40]}  Nxd5 {[%clk 0:01:54]} 19. Nxd5 {[%clk 0:01:40]}  Bxd5 {[%clk 0:01:55]} 20. Rfd1 {[%clk 0:01:39]}  Be6 {[%clk 0:01:54]} 21. Kg1 {[%clk 0:01:37]}  Rfc8 {[%clk 0:01:49]} 22. Bd4 {[%clk 0:01:34]}  h5 {[%clk 0:01:47]} 23. Bd3 {[%clk 0:01:34]}  Rd8 {[%clk 0:01:43]} 24. Be4 {[%clk 0:01:34]}  Rab8 {[%clk 0:01:38]} 25. b3 {[%clk 0:01:16]}  f5 {[%clk 0:01:28]} 26. Bc6 {[%clk 0:01:15]}  Kf7 {[%clk 0:01:22]} 27. Bf2 {[%clk 0:01:02]}  Bf4 {[%clk 0:01:15]} 28. g3 {[%clk 0:00:53]}  Be5 {[%clk 0:01:12]} 29. Rac1 {[%clk 0:00:46]}  f4 {[%clk 0:01:08]} 30. gxf4 {[%clk 0:00:38]}  Bxf4 {[%clk 0:01:09]} 31. Rb1 {[%clk 0:00:32]}  Bf5 {[%clk 0:01:03]} 32. Ra1 {[%clk 0:00:31]}  g5 {[%clk 0:01:00]} 33. Bd5+ {[%clk 0:00:28]}  Kg6 {[%clk 0:00:59]} 34. Bc4 {[%clk 0:00:27]}  a5 {[%clk 0:00:47]} 35. Re1 {[%clk 0:00:25]}  Rb7 {[%clk 0:00:35]} 36. Rad1 {[%clk 0:00:22]}  Rxd1 {[%clk 0:00:32]} 37. Rxd1 {[%clk 0:00:22]}  h4 {[%clk 0:00:30]} 38. Rd5 {[%clk 0:00:19]}  a4 {[%clk 0:00:30]} 39. Rb5 {[%clk 0:00:12]}  Rd7 {[%clk 0:00:22]} 40. Rd5 {[%clk 0:00:08]}  Rc7 {[%clk 0:00:23]} 41. Bb6 {[%clk 0:00:07]}  Rc6 {[%clk 0:00:17]} 42. Bf2 {[%clk 0:00:07]}  axb3 {[%clk 0:00:17]} 43. axb3 {[%clk 0:00:07]}  Rc8 {[%clk 0:00:17]} 44. Rd1 {[%clk 0:00:05]}  h3 {[%clk 0:00:15]} 45. Bd3 {[%clk 0:00:02]}  Rc3 {[%clk 0:00:14]} 46. Bxf5+ {[%clk 0:00:02]}  Kxf5 {[%clk 0:00:15]} 47. b4 {[%clk 0:00:02]}  Rxf3 {[%clk 0:00:15]} 48. b5 {[%clk 0:00:03]}  Rb3 {[%clk 0:00:14]} 49. b6 {[%clk 0:00:03]}  g4 {[%clk 0:00:14]} 50. Rd5+ {[%clk 0:00:03]}  Ke4 {[%clk 0:00:15]} 51. Rd4+ {[%clk 0:00:04]}  Kf3 {[%clk 0:00:15]} 52. Rd1 {[%clk 0:00:04]}  h2+ {[%clk 0:00:14]} 53. Kh1 {[%clk 0:00:04]}  Kxf2 {[%clk 0:00:15]} 54. b7 {[%clk 0:00:04]}  Rxb7 {[%clk 0:00:14]} 55. Rf1+ {[%clk 0:00:02]}  Ke3 {[%clk 0:00:15]} 56. Re1+ {[%clk 0:00:02]}  Kd4 {[%clk 0:00:15]} 57. Rd1+ {[%clk 0:00:03]}  Ke4 {[%clk 0:00:16]} 58. Re1+ {[%clk 0:00:03]}  Be3 {[%clk 0:00:16]} 59. Rd1 {[%clk 0:00:04]}  g3 {[%clk 0:00:15]} 60. Kg2 {[%clk 0:00:04]}  Rh7 {[%clk 0:00:15]} 61. Rh1 {[%clk 0:00:03]}  Bf4 {[%clk 0:00:15]} 62. Re1+ {[%clk 0:00:03]}  Kf5 {[%clk 0:00:15]} 63. Rh1 {[%clk 0:00:04]}  Kg4 {[%clk 0:00:14]} 64. Kf1 {[%clk 0:00:03]}  Kf3 {[%clk 0:00:14]} 65. Ke1 {[%clk 0:00:04]}  g2 {[%clk 0:00:12]} 66. Kd1 {[%clk 0:00:04]}  gxh1=Q+ {[%clk 0:00:12]} 67. Kc2 {[%clk 0:00:05]}  Qg2+ {[%clk 0:00:12]} 68. Kb3 {[%clk 0:00:06]}  Rb7+ {[%clk 0:00:12]} 69. Kc4 {[%clk 0:00:07]}  Qc2+ {[%clk 0:00:12]} 70. Kd5 {[%clk 0:00:08]}  Rb5+ {[%clk 0:00:12]} 71. Ke6 {[%clk 0:00:09]}  Qc6+ {[%clk 0:00:12]} 72. Ke7 {[%clk 0:00:09]}  Rb7+ {[%clk 0:00:13]} 73. Kd8 {[%clk 0:00:10]}  Qd7# {[%clk 0:00:13]} 0-1


[Site "https://www.chess.com"]